Workbook

Sheet Inicio GenM
A22: Descargue la versión Kindle
K31: Miguel Cervantes Jiménez

Sheet Sistema Básico GenM (hidden)
B1: EL MERCADO
B3: FUNCIÓN DE OFERTA
B4: xs | C4: -a0 | D4: a1
B5: =C5+(D5*D19) -> 10.0 | C5: -50.0 | D5: 3.0
C6: Inserte los datos correspondientes
B7: FUNCIÓN DE DEMANDA
B9: xd | C9: b0 | D9: -b1
B10: =C10+(D10*D19) -> 60.0 | C10: 100.0 | D10: -2.0
C11: Inserte los datos correspondientes
B13: Precio de equilibrio | D13: ='oculto GenM'!D37 -> 30.0
B14: Cantidad de equilibrio | D14: ='oculto GenM'!D38 -> 40.0
B16: Excedente neto consumidor | D16: =(((C10/D10*-1)-D13)*D14)/2 -> 400
B17: Excedente neto productor | D17: =((D13-(C5/D5*-1))*D14)/2 -> 267
B19: Precio diferente al de equilibrio | D19: 20.0
B20: Cantidad vendida | D20: ='oculto GenM'!D42 -> 10.0
D21: Cambie el precio
B22: Exceso de demanda | D22: ='oculto GenM'!D43 -> 50.0
B24: Exceceso de oferta | D24: ='oculto GenM'!D45 -> 
B26: Excedente neto consumidor | D26: ='oculto GenM'!D47 -> 275
B27: Excedente neto productor | D27: ='oculto GenM'!D48 -> 17
B28: Excedente del mercado | D28: =D26+D27 -> 292
B29: PIE consumidor | D29: ='oculto GenM'!D49 -> 375
B30: PIE productor | D30: ='oculto GenM'!D50 -> 150
B31: PIE | D31: ='oculto GenM'!D51 -> 525
B35: Títulos
B36: Resultados
B37: Insertar Datos
B38: Equilibrio

Sheet Sistema Ampliado GenM (hidden)
A1: EL MERCADO | H1: CAMBIO EN LAS FUNCIONES
B3: FUNCIÓN DE OFERTA | H3: NUEVA FUNCIÓN DE OFERTA
B4: xs | C4: -a0 | D4: a1 | E4: -a2 | H4: xs | I4: -a0 | J4: a1 | K4: `-a2
B5: ='oculto GenM'!P38 -> 913.3 | C5: -30.0 | D5: 1.0 | E5: -0.3 | H5: ='oculto GenM'!V38 -> 913.3 | I5: =C5 -> -30.0 | J5: =D5 -> 1.0 | K5: =E5 -> -0.3
C6: Insertar datos iniciales correspondientes | I6: Insertar los nuevos datos
B7: FUNCIÓN DE DEMANDA | H7: NUEVA FUNCIÓN DE DEMANDA
B8: xd | C8: b0 | D8: -b1 | E8: b2 | H8: xd | I8: b0 | J8: `-b1 | K8: b2
B9: ='oculto GenM'!P42 -> 913.3 | C9: 200.0 | D9: -0.5 | E9: 0.4 | H9: ='oculto GenM'!V42 -> 913.3 | I9: =C9 -> 200.0 | J9: =D9 -> -0.5 | K9: =E9 -> 0.4
C10: Insertar datos iniciales correspondientes | I10: Insertar los nuevos datos
H12: NUEVOS PRECIOS Y CANTIDADES | K12: Variación
B13: Precio de equilibrio | E13: ='oculto GenM'!S46 -> 1,693.3 | H13: Precio de equilibrio | J13: ='oculto GenM'!X46 -> 1,693.3 | K13: ='oculto GenM'!Y46 -> 0
B14: Cantidad de equilibrio | E14: ='oculto GenM'!S47 -> 913.3 | H14: Cantidad de equilibrio | J14: ='oculto GenM'!X47 -> 913.3 | K14: ='oculto GenM'!Y47 -> 0
D15: Insertar datos iniciales
H16: NUEVO INGRESO Y SALARIO | K16: Variación
B17: Ingreso (m) | D17: 3,900.0 | H17: Ingreso (m) | J17: =D17 -> 3,900.0 | K17: ='oculto GenM'!Y50 -> 0
B18: Salario (w) | D18: 2,500.0 | H18: Salario (w) | J18: =D18 -> 2,500.0 | K18: ='oculto GenM'!Y51 -> 0
D19: =E13 -> 1,693.3 | J19: Insertar los nuevos datos
D20: Cambiar el ingreso o salario
B22: Exceso de demanda | D22: ='oculto GenM'!R55 -> 0.0
B24: Execeso de oferta | D24: ='oculto GenM'!R57 -> 
B26: Títulos
B27: Resultados
B28: Insertar datos
B29: Equilibrio

Sheet Impuesto por Unidad GenM (hidden)
A1: EL MERCADO
C2: Impuesto por unidad | Q2: ANTES DEL IMPUESTO
B3: FUNCIÓN DE OFERTA INICIAL | Q3: Excedente neto del consumidor | T3: =(((C9/D9*-1)-E12)*(E13))/2 -> 400.0
B4: xs | C4: -a0 | D4: a1 | Q4: Excedente neto del productor | T4: =((E12-(C5/D5*-1))*E13)/2 -> 266.7
B5: =C5+(D5*E12) -> 40.0 | C5: -50.0 | D5: 3.0
C6: Insertar datos iniciales correspondientes | Q6: DESPUÉS DEL IMPUESTO
B7: FUNCIÓN DE DEMANDA INICIAL | Q7: FUNCIÓN DE OFERTA PRECIO PRODUCTOR
B8: xd | C8: b0 | D8: -b1 | Q8: xs | R8: -a0 | S8: a1 | T8: Pp
B9: =C9+(D9*E12) -> 40.0 | C9: 100.0 | D9: -2.0 | Q9: =R9+(S9*T9) -> 34.0 | R9: =C5 -> -50.0 | S9: =D5 -> 3.0 | T9: =D26 -> 28.0
C10: Insertar datos iniciales correspondientes
Q11: FUNCIÓN DE DEMANDA PRECIO CONSUMIDOR
B12: Precio de equilibrio | E12: ='oculto GenM'!AT31 -> 30.0 | Q12: xd | R12: b0 | S12: -b1 | T12: Pc
B13: Cantidad de equilibrio | E13: ='oculto GenM'!AT30 -> 40.0 | Q13: =R13+(S13*T13) -> 34.0 | R13: =C9 -> 100.0 | S13: =D9 -> -2.0 | T13: =D25 -> 33.0
B15: IMPUESTO POR UNIDAD | Q15: Excedente neto del consumidor | T15: =(((C9/D9*-1)-D25)*D27)/2 -> 289.0
B16: Al Productor | D16: 5.0 | Q16: Excedente neto del productor | T16: =((D26-(C5/D5*-1))*D27)/2 -> 192.7
B17: Al Consumidor | D17: 5.0 | Q17: Excedente neto del mercado | T17: =T15+T16 -> 481.7
D18: Insertar el impuesto | Q18: Ingresos tributarios | T18: =(D25-D26)*D27 -> 170.0
Q19: PIE consumidor | T19: =((D25-E12)*(E13-D27))/2 -> 9.0
Q20: PIE productor | T20: =((E12-D26)*(E13-D27))/2 -> 6.0
Q21: PIE | T21: =T19+T20 -> 15.0
B24: NUEVOS PRECIOS Y CANTIDADES | E24: Variación
B25: Precio consumidor | D25: ='oculto GenM'!AT36 -> 33.0 | E25: =D25-E12 -> 3.0
B26: Precio productor | D26: ='oculto GenM'!AT35 -> 28.0 | E26: =D26-E12 -> -2.0
B27: Cantidad de equilibrio | D27: ='oculto GenM'!AT34 -> 34.0 | E27: =D27-E13 -> -6.0
B31: Títulos
B32: Resultados
B33: Insertar datos
B34: Equilibrio

Sheet Impuesto Al Valor GenM (hidden)
A1: EL MERCADO
C2: Impuesto al valor
B3: FUNCIÓN DE OFERTA INICIAL
B4: xs | C4: -a0 | D4: a1
B5: =C5+(D5*E12) -> 48.6 | C5: -100.0 | D5: 4.0
C6: Insertar datos iniciales correspondientes
B7: FUNCIÓN DE DEMANDA INICIAL
B8: xd | C8: b0 | D8: -b1
B9: =C9+(D9*E12) -> 48.6 | C9: 160.0 | D9: -3.0
C10: Insertar datos iniciales correspondientes
B12: Precio de equilibrio | E12: ='oculto GenM'!BQ31 -> 37.1
B13: Cantidad de equilibrio | E13: ='oculto GenM'!BQ30 -> 48.6
B15: IMPUESTO EN TANTO POR UNO
B16: Al productor | D16: 0.2
B17: Al consumidor | D17: 0.0
D18: Insertar el impuesto
B24: NUEVOS PRECIOS Y CANTIDADES | E24: Variación
B25: Precio consumidor | D25: ='oculto GenM'!BQ36 -> 41.1 | E25: =D25-E12 -> 3.9
B26: Precio productor | D26: ='oculto GenM'!BQ35 -> 34.2 | E26: =D26-E12 -> -2.9
B27: Impuesto en pesos | D27: =D25-D26 -> 6.8
B28: Cantidad de equilibrio | D28: ='oculto GenM'!BQ34 -> 36.8 | E28: =D28-E13 -> -11.7
B29: Ingresos tributarios | D29: =D27*D28 -> 252.1
B30: PIE | D30: =(D27*(E13-D28))/2 -> 40.1
B32: Títulos
B33: Resultados
B34: Insertar datos
B35: Equilibrio

Sheet oculto GenM (hidden)
A1: SISTEMA BÁSICO | O1: SISTEMA AMPLIADO | W1: LINEAS DE EQUILIBRIO DE AMBOS SISTEMAS | AE1: LINEAS DEL DESEQUILIBRIO | AN1: IMPUESTO POR UNIDAD | BK1: IMPUESTO AL VALOR
A2: Unidades | B2: P Oferta | C2: P Demanda | D2: Cantidad | E2: Factor Precio | F2: plin | G2: xlin | H2: Excesos P | K2: Exceso X | O2: Unidades | P2: Oferta Inicial | Q2: Demanda Inicial | R2: x | S2: Factor Precio | T2: Oferta Final | U2: Demanda Final | V2: x | W2: Inicial Precio | X2: Inicial cantidad | Y2: Inicial cantidad | Z2: Inicial Precio | AA2: Final Precio | AB2: Final Precio | AC2: Final cantidad | AD2: Final cantidad | AE2: Lprecio | AG2: Lppond | AH2: LQ1 | AI2: LQ2 | AN2: Unidades | AO2: Oferta Inicial | AP2: Demanda Inicial | AQ2: x | AR2: Factor Precio | AS2: Oferta Final | AT2: Demanda Final | AU2: x | AV2: Oferta Final | AW2: X | AX2: Demanda Final | AZ2: Inicial Precio | BA2: Inicial cantidad | BB2: Inicial cantidad | BC2: Inicial Precio | BD2: Final Precio | BE2: Final Precio | BF2: Final Precio | BG2: Final cantidad | BH2: Final cantidad | BK2: Unidades | BL2: Oferta Inicial | BM2: Demanda Inicial | BN2: x | BO2: Factor Precio | BP2: Oferta Final | BQ2: Demanda Final | BR2: x | BS2: Oferta Final | BT2: X | BU2: Demanda Final | BW2: Inicial Precio | BX2: Inicial cantidad | BY2: Inicial cantidad | BZ2: Inicial Precio | CA2: Final Precio | CB2: Final Precio | CC2: Final Precio | CD2: Final cantidad | CE2: Final cantidad
B3: 0 | D3: 0 | G3: =$D$14 -> 40.00 | P3: 0 | R3: 0 | W3: ps* | X3: x*(ponder) | Y3: x* | Z3: pd*(ponder) | AA3: p* | AB3: x*(ponder) | AC3: x* | AD3: p*(ponder) | AO3: 0 | AQ3: 0 | AS3: ok | AV3: GRÁFICA | AX3: GRÁFICA | AZ3: ps* | BA3: x*(ponder) | BB3: x* | BC3: pd*(ponder) | BD3: ps* | BE3: pd* | BF3: x*(ponder) | BG3: x* | BH3: p*(ponder) | BL3: 0 | BN3: 0 | BP3: ok | BS3: GRÁFICA | BU3: GRÁFICA | BW3: ps* | BX3: x*(ponder) | BY3: x* | BZ3: pd*(ponder) | CA3: ps* | CB3: pd* | CC3: x*(ponder) | CD3: x* | CE3: p*(ponder)
A4: 0 | B4: =(-('Sistema Básico GenM'!$C$5)/'Sistema Básico GenM'!$D$5)+(D4/('Sistema Básico GenM'!$D$5)) -> 17 | C4: =(-('Sistema Básico GenM'!$C$10)/('Sistema Básico GenM'!$D$10))+(D4/'Sistema Básico GenM'!$D$10) -> 50 | D4: ='Sistema Básico GenM'!$D$14*E4 -> 0 | E4: 0.00 | F4: =$B$14 -> 30.00 | G4: =$D$14 -> 40.00 | H4: =E4*$I$20 -> 0.00 | I4: ='Sistema Básico GenM'!$D$19 -> 20.00 | J4: =MIN($I$21:$I$22) -> 10.00 | K4: ='Sistema Básico GenM'!$D$19*'oculto GenM'!E4 -> 0.00 | L4: =E4*$I$22 -> 0.00 | M4: =MAX($I$21:$I$22) -> 60.00 | O4: 0 | P4: =(R4-$Q$38-($S$38*$R$51))/$R$38 -> 780 | Q4: =(R4-$Q$42-($S$42*$R$50))/$R$42 -> 3,520 | R4: ='Sistema Ampliado GenM'!$E$14*S4 -> 0 | S4: 0.00 | T4: =(V4-($W$38)-($Y$38*$X$51))/$X$38 -> 780 | U4: =(V4-$W$42-($Y$42*$X$50))/$X$42 -> 3,520 | V4: =R4 -> 0 | W4: =$P$14 -> 1,693 | X4: =$R$14*S4 -> 0 | Y4: =$R$14 -> 913 | Z4: =$Q$14*S4 -> 0 | AA4: ='Sistema Ampliado GenM'!$J$13 -> 1,693 | AB4: ='Sistema Ampliado GenM'!$J$14*S4 -> 0 | AC4: ='Sistema Ampliado GenM'!$J$14 -> 913 | AD4: =S4*'Sistema Ampliado GenM'!$J$13 -> 0 | AE4: =$R$52 -> 1,693.33 | AF4: =$S$52*S4 -> 0 | AG4: =$R$52*S4 -> 0 | AH4: =$P$38*S4 -> 0 | AI4: =S4*$P$42 -> 0 | AJ4: =$P$38 -> 913.33 | AK4: =$P$42 -> 913.33 | AN4: 0 | AO4: =(AQ4-$AT$26)/$AT$27 -> 17 | AP4: =(AQ4-$AT$28)/$AT$29 -> 50 | AQ4: =$AT$30*AR4 -> 0 | AR4: 0.00 | AS4: =(AU4-$AT$26+($AT$27*$AT$32))/$AT$27 -> 22 | AT4: =(AU4-$AT$28-($AT$29*$AT$33))/$AT$29 -> 45 | AU4: =$AT$34*AR4 -> 0 | AV4: =IF($AW$28=1,AO4,AS4) -> 17 | AW4: =IF($AW$28=1,AQ4,AU4) -> 0 | AX4: =IF($AW$28=1,AT4,AP4) -> 45 | AY4: =IF($AW$28=1,AU4,AQ4) -> 0 | AZ4: =$AT$31 -> 30 | BA4: =$AT$30*AR4 -> 0 | BB4: =$AT$30 -> 40 | BC4: =$AT$31*AR4 -> 0 | BD4: =$AT$35 -> 28 | BE4: =$AT$36 -> 33 | BF4: =$AT$34*AR4 -> 0 | BG4: =$AT$34 -> 34 | BH4: =MAX($BD$4:$BE$4)*AR4 -> 0 | BK4: 0 | BL4: =(BN4-$BQ$26)/$BQ$27 -> 25 | BM4: =(BN4-$BQ$28)/$BQ$29 -> 53 | BN4: =$BQ$30*BO4 -> 0 | BO4: 0.00 | BP4: =((BR4-$BQ$26)/($BQ$27))+($BQ$35*$BQ$32) -> 32 | BQ4: =((BR4-$BQ$28)/$BQ$29)-($BQ$35*$BQ$33) -> 53 | BR4: =$BQ$34*BO4 -> 0 | BS4: =IF($BT$28=1,BL4,BP4) -> 32 | BT4: =IF($BT$28=1,BN4,BR4) -> 0 | BU4: =IF($BT$28=1,BQ4,BM4) -> 53 | BV4: =IF($BT$28=1,BR4,BN4) -> 0 | BW4: =$BQ$31 -> 37 | BX4: =$BQ$30*BO4 -> 0 | BY4: =$BQ$30 -> 49 | BZ4: =$BQ$31*BO4 -> 0 | CA4: =$BQ$35 -> 34 | CB4: =$BQ$36 -> 41 | CC4: =$BQ$34*BO4 -> 0 | CD4: =$BQ$34 -> 37 | CE4: =MAX($CA$4:$CB$4)*BO4 -> 0
A5: 1 | B5: =(-('Sistema Básico GenM'!$C$5)/'Sistema Básico GenM'!$D$5)+(D5/('Sistema Básico GenM'!$D$5)) -> 18 | C5: =(-('Sistema Básico GenM'!$C$10)/('Sistema Básico GenM'!$D$10))+(D5/'Sistema Básico GenM'!$D$10) -> 48 | D5: ='Sistema Básico GenM'!$D$14*E5 -> 4 | E5: 0.10 | F5: =$B$14 -> 30.00 | G5: =$D$14 -> 40.00 | H5: 6.00 | I5: ='Sistema Básico GenM'!$D$19 -> 20.00 | J5: 10.00 | K5: ='Sistema Básico GenM'!$D$19*'oculto GenM'!E5 -> 2.00 | L5: 1.00 | M5: 60.00 | O5: 1 | P5: 871 | Q5: =(R5-$Q$42-($S$42*$R$50))/$R$42 -> 3,337 | R5: ='Sistema Ampliado GenM'!$E$14*S5 -> 91 | S5: 0.10 | T5: =(V5-($W$38)-($Y$38*$X$51))/$X$38 -> 871 | U5: =(V5-$W$42-($Y$42*$X$50))/$X$42 -> 3,337 | V5: =R5 -> 91 | W5: =$P$14 -> 1,693 | X5: 91.33 | Y5: =$R$14 -> 913 | Z5: =$Q$14*S5 -> 169.33 | AA5: ='Sistema Ampliado GenM'!$J$13 -> 1,693 | AB5: ='Sistema Ampliado GenM'!$J$14*S5 -> 91.33 | AC5: ='Sistema Ampliado GenM'!$J$14 -> 913 | AD5: =S5*'Sistema Ampliado GenM'!$J$13 -> 169.33 | AE5: =$R$52 -> 1,693.33 | AF5: =$S$52*S5 -> 91.33 | AG5: =$R$52*S5 -> 169.33 | AH5: =$P$38*S5 -> 91.33 | AI5: =S5*$P$42 -> 91.33 | AJ5: =$P$38 -> 913.33 | AK5: =$P$42 -> 913.33 | AN5: 1 | AO5: =(AQ5-$AT$26)/$AT$27 -> 18 | AP5: =(AQ5-$AT$28)/$AT$29 -> 48 | AQ5: 4 | AR5: 0.10 | AS5: =(AU5-$AT$26+($AT$27*$AT$32))/$AT$27 -> 23 | AT5: =(AU5-$AT$28-($AT$29*$AT$33))/$AT$29 -> 43 | AU5: =$AT$34*AR5 -> 3 | AV5: =IF($AW$28=1,AO5,AS5) -> 18 | AW5: =IF($AW$28=1,AQ5,AU5) -> 4 | AX5: =IF($AW$28=1,AT5,AP5) -> 43 | AY5: =IF($AW$28=1,AU5,AQ5) -> 3 | AZ5: =$AT$31 -> 30 | BA5: =$AT$30*AR5 -> 4.00 | BB5: =$AT$30 -> 40 | BC5: =$AT$31*AR5 -> 3.00 | BD5: =$AT$35 -> 28 | BE5: =$AT$36 -> 33 | BF5: =$AT$34*AR5 -> 3.40 | BG5: =$AT$34 -> 34 | BH5: =MAX($BD$4:$BE$4)*AR5 -> 3.30 | BK5: 1 | BL5: =(BN5-$BQ$26)/$BQ$27 -> 26 | BM5: =(BN5-$BQ$28)/$BQ$29 -> 52 | BN5: =$BQ$30*BO5 -> 5 | BO5: 0.10 | BP5: =((BR5-$BQ$26)/($BQ$27))+($BQ$35*$BQ$32) -> 33 | BQ5: =((BR5-$BQ$28)/$BQ$29)-($BQ$35*$BQ$33) -> 52 | BR5: =$BQ$34*BO5 -> 4 | BS5: =IF($BT$28=1,BL5,BP5) -> 33 | BT5: =IF($BT$28=1,BN5,BR5) -> 4 | BU5: =IF($BT$28=1,BQ5,BM5) -> 52 | BV5: =IF($BT$28=1,BR5,BN5) -> 5 | BW5: =$BQ$31 -> 37 | BX5: =$BQ$30*BO5 -> 4.86 | BY5: =$BQ$30 -> 49 | BZ5: =$BQ$31*BO5 -> 3.71 | CA5: =$BQ$35 -> 34 | CB5: =$BQ$36 -> 41 | CC5: =$BQ$34*BO5 -> 3.68 | CD5: =$BQ$34 -> 37 | CE5: =MAX($CA$4:$CB$4)*BO5 -> 4.11
A6: 2 | B6: =(-('Sistema Básico GenM'!$C$5)/'Sistema Básico GenM'!$D$5)+(D6/('Sistema Básico GenM'!$D$5)) -> 19 | C6: =(-('Sistema Básico GenM'!$C$10)/('Sistema Básico GenM'!$D$10))+(D6/'Sistema Básico GenM'!$D$10) -> 46 | D6: ='Sistema Básico GenM'!$D$14*E6 -> 8 | E6: 0.20 | F6: =$B$14 -> 30.00 | G6: =$D$14 -> 40.00 | H6: 12.00 | I6: ='Sistema Básico GenM'!$D$19 -> 20.00 | J6: 10.00 | K6: ='Sistema Básico GenM'!$D$19*'oculto GenM'!E6 -> 4.00 | L6: 2.00 | M6: 60.00 | O6: 2 | P6: 963 | Q6: 3,155 | R6: ='Sistema Ampliado GenM'!$E$14*S6 -> 183 | S6: 0.20 | T6: 963 | U6: 3,155 | V6: 183 | W6: 1,693 | X6: 182.67 | Y6: 913 | Z6: 338.67 | AA6: ='Sistema Ampliado GenM'!$J$13 -> 1,693 | AB6: ='Sistema Ampliado GenM'!$J$14*S6 -> 182.67 | AC6: ='Sistema Ampliado GenM'!$J$14 -> 913 | AD6: =S6*'Sistema Ampliado GenM'!$J$13 -> 338.67 | AE6: 1,693.33 | AF6: 182.67 | AG6: 338.67 | AH6: 182.67 | AI6: 182.67 | AJ6: 913.33 | AK6: 913.33 | AN6: 2 | AO6: 19 | AP6: 46 | AQ6: 8 | AR6: 0.20 | AS6: 24 | AT6: 42 | AU6: 7 | AV6: 19 | AW6: 8 | AX6: 42 | AY6: 7 | AZ6: 30 | BA6: 8.00 | BB6: 40 | BC6: 6.00 | BD6: 28 | BE6: 33 | BF6: 6.80 | BG6: 34 | BH6: 6.60 | BK6: 2 | BL6: 27 | BM6: 50 | BN6: 10 | BO6: 0.20 | BP6: 34 | BQ6: 51 | BR6: 7 | BS6: 34 | BT6: 7 | BU6: 50 | BV6: 10 | BW6: 37 | BX6: 9.71 | BY6: 49 | BZ6: 7.43 | CA6: 34 | CB6: 41 | CC6: 7.37 | CD6: 37 | CE6: 8.21
A7: 3 | B7: =(-('Sistema Básico GenM'!$C$5)/'Sistema Básico GenM'!$D$5)+(D7/('Sistema Básico GenM'!$D$5)) -> 21 | C7: =(-('Sistema Básico GenM'!$C$10)/('Sistema Básico GenM'!$D$10))+(D7/'Sistema Básico GenM'!$D$10) -> 44 | D7: ='Sistema Básico GenM'!$D$14*E7 -> 12 | E7: 0.30 | F7: 30.00 | G7: 40.00 | H7: 18.00 | I7: ='Sistema Básico GenM'!$D$19 -> 20.00 | J7: 10.00 | K7: ='Sistema Básico GenM'!$D$19*'oculto GenM'!E7 -> 6.00 | L7: 3.00 | M7: 60.00 | O7: 3 | P7: 1,054 | Q7: 2,972 | R7: ='Sistema Ampliado GenM'!$E$14*S7 -> 274 | S7: 0.30 | T7: 1,054 | U7: 2,972 | V7: 274 | W7: 1,693 | X7: 274.00 | Y7: 913 | Z7: 508.00 | AA7: ='Sistema Ampliado GenM'!$J$13 -> 1,693 | AB7: ='Sistema Ampliado GenM'!$J$14*S7 -> 274.00 | AC7: ='Sistema Ampliado GenM'!$J$14 -> 913 | AD7: =S7*'Sistema Ampliado GenM'!$J$13 -> 508.00 | AE7: 1,693.33 | AF7: 274.00 | AG7: 508.00 | AH7: 274.00 | AI7: 274.00 | AJ7: 913.33 | AK7: 913.33 | AN7: 3 | AO7: 21 | AP7: 44 | AQ7: 12 | AR7: 0.30 | AS7: 25 | AT7: 40 | AU7: 10 | AV7: 21 | AW7: 12 | AX7: 40 | AY7: 10 | AZ7: 30 | BA7: 12.00 | BB7: 40 | BC7: 9.00 | BD7: 28 | BE7: 33 | BF7: 10.20 | BG7: 34 | BH7: 9.90 | BK7: 3 | BL7: 29 | BM7: 48 | BN7: 15 | BO7: 0.30 | BP7: 35 | BQ7: 50 | BR7: 11 | BS7: 35 | BT7: 11 | BU7: 48 | BV7: 15 | BW7: 37 | BX7: 14.57 | BY7: 49 | BZ7: 11.14 | CA7: 34 | CB7: 41 | CC7: 11.05 | CD7: 37 | CE7: 12.32
A8: 4 | B8: =(-('Sistema Básico GenM'!$C$5)/'Sistema Básico GenM'!$D$5)+(D8/('Sistema Básico GenM'!$D$5)) -> 22 | C8: =(-('Sistema Básico GenM'!$C$10)/('Sistema Básico GenM'!$D$10))+(D8/'Sistema Básico GenM'!$D$10) -> 42 | D8: ='Sistema Básico GenM'!$D$14*E8 -> 16 | E8: 0.40 | F8: 30.00 | G8: 40.00 | H8: 24.00 | I8: ='Sistema Básico GenM'!$D$19 -> 20.00 | J8: 10.00 | K8: ='Sistema Básico GenM'!$D$19*'oculto GenM'!E8 -> 8.00 | L8: 4.00 | M8: 60.00 | O8: 4 | P8: 1,145 | Q8: 2,789 | R8: ='Sistema Ampliado GenM'!$E$14*S8 -> 365 | S8: 0.40 | T8: 1,145 | U8: 2,789 | V8: 365 | W8: 1,693 | X8: 365.33 | Y8: 913 | Z8: 677.33 | AA8: ='Sistema Ampliado GenM'!$J$13 -> 1,693 | AB8: ='Sistema Ampliado GenM'!$J$14*S8 -> 365.33 | AC8: ='Sistema Ampliado GenM'!$J$14 -> 913 | AD8: =S8*'Sistema Ampliado GenM'!$J$13 -> 677.33 | AE8: 1,693.33 | AF8: 365.33 | AG8: 677.33 | AH8: 365.33 | AI8: 365.33 | AJ8: 913.33 | AK8: 913.33 | AN8: 4 | AO8: 22 | AP8: 42 | AQ8: 16 | AR8: 0.40 | AS8: 26 | AT8: 38 | AU8: 14 | AV8: 22 | AW8: 16 | AX8: 38 | AY8: 14 | AZ8: 30 | BA8: 16.00 | BB8: 40 | BC8: 12.00 | BD8: 28 | BE8: 33 | BF8: 13.60 | BG8: 34 | BH8: 13.20 | BK8: 4 | BL8: 30 | BM8: 47 | BN8: 19 | BO8: 0.40 | BP8: 36 | BQ8: 48 | BR8: 15 | BS8: 36 | BT8: 15 | BU8: 47 | BV8: 19 | BW8: 37 | BX8: 19.43 | BY8: 49 | BZ8: 14.86 | CA8: 34 | CB8: 41 | CC8: 14.74 | CD8: 37 | CE8: 16.42
A9: 5 | B9: =(-('Sistema Básico GenM'!$C$5)/'Sistema Básico GenM'!$D$5)+(D9/('Sistema Básico GenM'!$D$5)) -> 23 | C9: =(-('Sistema Básico GenM'!$C$10)/('Sistema Básico GenM'!$D$10))+(D9/'Sistema Básico GenM'!$D$10) -> 40 | D9: ='Sistema Básico GenM'!$D$14*E9 -> 20 | E9: 0.50 | F9: 30.00 | G9: 40.00 | H9: 30.00 | I9: ='Sistema Básico GenM'!$D$19 -> 20.00 | J9: 10.00 | K9: ='Sistema Básico GenM'!$D$19*'oculto GenM'!E9 -> 10.00 | L9: 5.00 | M9: 60.00 | O9: 5 | P9: 1,237 | Q9: 2,607 | R9: ='Sistema Ampliado GenM'!$E$14*S9 -> 457 | S9: 0.50 | T9: 1,237 | U9: 2,607 | V9: 457 | W9: 1,693 | X9: 456.67 | Y9: 913 | Z9: 846.67 | AA9: ='Sistema Ampliado GenM'!$J$13 -> 1,693 | AB9: ='Sistema Ampliado GenM'!$J$14*S9 -> 456.67 | AC9: ='Sistema Ampliado GenM'!$J$14 -> 913 | AD9: =S9*'Sistema Ampliado GenM'!$J$13 -> 846.67 | AE9: 1,693.33 | AF9: 456.67 | AG9: 846.67 | AH9: 456.67 | AI9: 456.67 | AJ9: 913.33 | AK9: 913.33 | AN9: 5 | AO9: 23 | AP9: 40 | AQ9: 20 | AR9: 0.50 | AS9: 27 | AT9: 37 | AU9: 17 | AV9: 23 | AW9: 20 | AX9: 37 | AY9: 17 | AZ9: 30 | BA9: 20.00 | BB9: 40 | BC9: 15.00 | BD9: 28 | BE9: 33 | BF9: 17.00 | BG9: 34 | BH9: 16.50 | BK9: 5 | BL9: 31 | BM9: 45 | BN9: 24 | BO9: 0.50 | BP9: 36 | BQ9: 47 | BR9: 18 | BS9: 36 | BT9: 18 | BU9: 45 | BV9: 24 | BW9: 37 | BX9: 24.29 | BY9: 49 | BZ9: 18.57 | CA9: 34 | CB9: 41 | CC9: 18.42 | CD9: 37 | CE9: 20.53
A10: 6 | B10: =(-('Sistema Básico GenM'!$C$5)/'Sistema Básico GenM'!$D$5)+(D10/('Sistema Básico GenM'!$D$5)) -> 25 | C10: =(-('Sistema Básico GenM'!$C$10)/('Sistema Básico GenM'!$D$10))+(D10/'Sistema Básico GenM'!$D$10) -> 38 | D10: ='Sistema Básico GenM'!$D$14*E10 -> 24 | E10: 0.60 | F10: 30.00 | G10: 40.00 | H10: 36.00 | I10: ='Sistema Básico GenM'!$D$19 -> 20.00 | J10: 10.00 | K10: ='Sistema Básico GenM'!$D$19*'oculto GenM'!E10 -> 12.00 | L10: 6.00 | M10: 60.00 | O10: 6 | P10: 1,328 | Q10: 2,424 | R10: ='Sistema Ampliado GenM'!$E$14*S10 -> 548 | S10: 0.60 | T10: 1,328 | U10: 2,424 | V10: 548 | W10: 1,693 | X10: 548.00 | Y10: 913 | Z10: 1,016.00 | AA10: ='Sistema Ampliado GenM'!$J$13 -> 1,693 | AB10: ='Sistema Ampliado GenM'!$J$14*S10 -> 548.00 | AC10: ='Sistema Ampliado GenM'!$J$14 -> 913 | AD10: =S10*'Sistema Ampliado GenM'!$J$13 -> 1,016.00 | AE10: 1,693.33 | AF10: 548.00 | AG10: 1,016.00 | AH10: 548.00 | AI10: 548.00 | AJ10: 913.33 | AK10: 913.33 | AN10: 6 | AO10: 25 | AP10: 38 | AQ10: 24 | AR10: 0.60 | AS10: 28 | AT10: 35 | AU10: 20 | AV10: 25 | AW10: 24 | AX10: 35 | AY10: 20 | AZ10: 30 | BA10: 24.00 | BB10: 40 | BC10: 18.00 | BD10: 28 | BE10: 33 | BF10: 20.40 | BG10: 34 | BH10: 19.80 | BK10: 6 | BL10: 32 | BM10: 44 | BN10: 29 | BO10: 0.60 | BP10: 37 | BQ10: 46 | BR10: 22 | BS10: 37 | BT10: 22 | BU10: 44 | BV10: 29 | BW10: 37 | BX10: 29.14 | BY10: 49 | BZ10: 22.29 | CA10: 34 | CB10: 41 | CC10: 22.11 | CD10: 37 | CE10: 24.63
A11: 7 | B11: =(-('Sistema Básico GenM'!$C$5)/'Sistema Básico GenM'!$D$5)+(D11/('Sistema Básico GenM'!$D$5)) -> 26 | C11: =(-('Sistema Básico GenM'!$C$10)/('Sistema Básico GenM'!$D$10))+(D11/'Sistema Básico GenM'!$D$10) -> 36 | D11: ='Sistema Básico GenM'!$D$14*E11 -> 28 | E11: 0.70 | F11: 30.00 | G11: 40.00 | H11: 42.00 | I11: ='Sistema Básico GenM'!$D$19 -> 20.00 | J11: 10.00 | K11: ='Sistema Básico GenM'!$D$19*'oculto GenM'!E11 -> 14.00 | L11: 7.00 | M11: 60.00 | O11: 7 | P11: 1,419 | Q11: 2,241 | R11: ='Sistema Ampliado GenM'!$E$14*S11 -> 639 | S11: 0.70 | T11: 1,419 | U11: 2,241 | V11: 639 | W11: 1,693 | X11: 639.33 | Y11: 913 | Z11: 1,185.33 | AA11: ='Sistema Ampliado GenM'!$J$13 -> 1,693 | AB11: ='Sistema Ampliado GenM'!$J$14*S11 -> 639.33 | AC11: ='Sistema Ampliado GenM'!$J$14 -> 913 | AD11: =S11*'Sistema Ampliado GenM'!$J$13 -> 1,185.33 | AE11: 1,693.33 | AF11: 639.33 | AG11: 1,185.33 | AH11: 639.33 | AI11: 639.33 | AJ11: 913.33 | AK11: 913.33 | AN11: 7 | AO11: 26 | AP11: 36 | AQ11: 28 | AR11: 0.70 | AS11: 30 | AT11: 33 | AU11: 24 | AV11: 26 | AW11: 28 | AX11: 33 | AY11: 24 | AZ11: 30 | BA11: 28.00 | BB11: 40 | BC11: 21.00 | BD11: 28 | BE11: 33 | BF11: 23.80 | BG11: 34 | BH11: 23.10 | BK11: 7 | BL11: 34 | BM11: 42 | BN11: 34 | BO11: 0.70 | BP11: 38 | BQ11: 45 | BR11: 26 | BS11: 38 | BT11: 26 | BU11: 42 | BV11: 34 | BW11: 37 | BX11: 34.00 | BY11: 49 | BZ11: 26.00 | CA11: 34 | CB11: 41 | CC11: 25.79 | CD11: 37 | CE11: 28.74
A12: 8 | B12: =(-('Sistema Básico GenM'!$C$5)/'Sistema Básico GenM'!$D$5)+(D12/('Sistema Básico GenM'!$D$5)) -> 27 | C12: =(-('Sistema Básico GenM'!$C$10)/('Sistema Básico GenM'!$D$10))+(D12/'Sistema Básico GenM'!$D$10) -> 34 | D12: ='Sistema Básico GenM'!$D$14*E12 -> 32 | E12: 0.80 | F12: 30.00 | G12: 40.00 | H12: 48.00 | I12: ='Sistema Básico GenM'!$D$19 -> 20.00 | J12: 10.00 | K12: ='Sistema Básico GenM'!$D$19*'oculto GenM'!E12 -> 16.00 | L12: 8.00 | M12: 60.00 | O12: 8 | P12: 1,511 | Q12: 2,059 | R12: ='Sistema Ampliado GenM'!$E$14*S12 -> 731 | S12: 0.80 | T12: 1,511 | U12: 2,059 | V12: 731 | W12: 1,693 | X12: 730.67 | Y12: 913 | Z12: 1,354.67 | AA12: ='Sistema Ampliado GenM'!$J$13 -> 1,693 | AB12: ='Sistema Ampliado GenM'!$J$14*S12 -> 730.67 | AC12: ='Sistema Ampliado GenM'!$J$14 -> 913 | AD12: =S12*'Sistema Ampliado GenM'!$J$13 -> 1,354.67 | AE12: 1,693.33 | AF12: 730.67 | AG12: 1,354.67 | AH12: 730.67 | AI12: 730.67 | AJ12: 913.33 | AK12: 913.33 | AN12: 8 | AO12: 27 | AP12: 34 | AQ12: 32 | AR12: 0.80 | AS12: 31 | AT12: 31 | AU12: 27 | AV12: 27 | AW12: 32 | AX12: 31 | AY12: 27 | AZ12: 30 | BA12: 32.00 | BB12: 40 | BC12: 24.00 | BD12: 28 | BE12: 33 | BF12: 27.20 | BG12: 34 | BH12: 26.40 | BK12: 8 | BL12: 35 | BM12: 40 | BN12: 39 | BO12: 0.80 | BP12: 39 | BQ12: 44 | BR12: 29 | BS12: 39 | BT12: 29 | BU12: 40 | BV12: 39 | BW12: 37 | BX12: 38.86 | BY12: 49 | BZ12: 29.71 | CA12: 34 | CB12: 41 | CC12: 29.47 | CD12: 37 | CE12: 32.84
A13: 9 | B13: =(-('Sistema Básico GenM'!$C$5)/'Sistema Básico GenM'!$D$5)+(D13/('Sistema Básico GenM'!$D$5)) -> 29 | C13: =(-('Sistema Básico GenM'!$C$10)/('Sistema Básico GenM'!$D$10))+(D13/'Sistema Básico GenM'!$D$10) -> 32 | D13: ='Sistema Básico GenM'!$D$14*E13 -> 36 | E13: 0.90 | F13: 30.00 | G13: 40.00 | H13: 54.00 | I13: ='Sistema Básico GenM'!$D$19 -> 20.00 | J13: 10.00 | K13: ='Sistema Básico GenM'!$D$19*'oculto GenM'!E13 -> 18.00 | L13: 9.00 | M13: 60.00 | O13: 9 | P13: 1,602 | Q13: 1,876 | R13: ='Sistema Ampliado GenM'!$E$14*S13 -> 822 | S13: 0.90 | T13: 1,602 | U13: 1,876 | V13: 822 | W13: 1,693 | X13: 822.00 | Y13: 913 | Z13: 1,524.00 | AA13: ='Sistema Ampliado GenM'!$J$13 -> 1,693 | AB13: ='Sistema Ampliado GenM'!$J$14*S13 -> 822.00 | AC13: ='Sistema Ampliado GenM'!$J$14 -> 913 | AD13: =S13*'Sistema Ampliado GenM'!$J$13 -> 1,524.00 | AE13: 1,693.33 | AF13: 822.00 | AG13: 1,524.00 | AH13: 822.00 | AI13: 822.00 | AJ13: 913.33 | AK13: 913.33 | AN13: 9 | AO13: 29 | AP13: 32 | AQ13: 36 | AR13: 0.90 | AS13: 32 | AT13: 30 | AU13: 31 | AV13: 29 | AW13: 36 | AX13: 30 | AY13: 31 | AZ13: 30 | BA13: 36.00 | BB13: 40 | BC13: 27.00 | BD13: 28 | BE13: 33 | BF13: 30.60 | BG13: 34 | BH13: 29.70 | BK13: 9 | BL13: 36 | BM13: 39 | BN13: 44 | BO13: 0.90 | BP13: 40 | BQ13: 42 | BR13: 33 | BS13: 40 | BT13: 33 | BU13: 39 | BV13: 44 | BW13: 37 | BX13: 43.71 | BY13: 49 | BZ13: 33.43 | CA13: 34 | CB13: 41 | CC13: 33.16 | CD13: 37 | CE13: 36.95
A14: 10 | B14: =(-('Sistema Básico GenM'!$C$5)/'Sistema Básico GenM'!$D$5)+(D14/('Sistema Básico GenM'!$D$5)) -> 30 | C14: =(-('Sistema Básico GenM'!$C$10)/('Sistema Básico GenM'!$D$10))+(D14/'Sistema Básico GenM'!$D$10) -> 30 | D14: ='Sistema Básico GenM'!$D$14*E14 -> 40 | E14: 1.00 | F14: 30.00 | G14: 40.00 | H14: 60.00 | I14: ='Sistema Básico GenM'!$D$19 -> 20.00 | J14: 10.00 | K14: ='Sistema Básico GenM'!$D$19*'oculto GenM'!E14 -> 20.00 | L14: 10.00 | M14: 60.00 | O14: 10 | P14: =(R14-$Q$38-($S$38*$R$51))/$R$38 -> 1,693 | Q14: 1,693 | R14: ='Sistema Ampliado GenM'!$E$14*S14 -> 913 | S14: 1.00 | T14: 1,693 | U14: 1,693 | V14: =R14 -> 913 | W14: 1,693 | X14: =$R$14*S14 -> 913.33 | Y14: 913 | Z14: 1,693.33 | AA14: ='Sistema Ampliado GenM'!$J$13 -> 1,693 | AB14: ='Sistema Ampliado GenM'!$J$14*S14 -> 913.33 | AC14: ='Sistema Ampliado GenM'!$J$14 -> 913 | AD14: =S14*'Sistema Ampliado GenM'!$J$13 -> 1,693.33 | AE14: 1,693.33 | AF14: 913.33 | AG14: 1,693.33 | AH14: 913.33 | AI14: 913.33 | AJ14: 913.33 | AK14: 913.33 | AN14: 10 | AO14: 30 | AP14: 30 | AQ14: 40 | AR14: 1.00 | AS14: 33 | AT14: 28 | AU14: 34 | AV14: 30 | AW14: 40 | AX14: 28 | AY14: 34 | AZ14: 30 | BA14: 40.00 | BB14: 40 | BC14: 30.00 | BD14: 28 | BE14: 33 | BF14: 34.00 | BG14: 34 | BH14: 33.00 | BK14: 10 | BL14: 37 | BM14: 37 | BN14: 49 | BO14: 1.00 | BP14: 41 | BQ14: 41 | BR14: 37 | BS14: 41 | BT14: 37 | BU14: 37 | BV14: 49 | BW14: 37 | BX14: 48.57 | BY14: 49 | BZ14: 37.14 | CA14: 34 | CB14: 41 | CC14: 36.84 | CD14: 37 | CE14: 41.05
A15: 11 | B15: =(-('Sistema Básico GenM'!$C$5)/'Sistema Básico GenM'!$D$5)+(D15/('Sistema Básico GenM'!$D$5)) -> 31 | C15: =(-('Sistema Básico GenM'!$C$10)/('Sistema Básico GenM'!$D$10))+(D15/'Sistema Básico GenM'!$D$10) -> 28 | D15: ='Sistema Básico GenM'!$D$14*E15 -> 44 | E15: 1.10 | I15: ='Sistema Básico GenM'!$D$19 -> 20.00 | O15: 11 | P15: =(R15-$Q$38-($S$38*$R$51))/$R$38 -> 1,785 | Q15: 1,511 | R15: ='Sistema Ampliado GenM'!$E$14*S15 -> 1,005 | S15: 1.10 | T15: 1,785 | U15: 1,511 | V15: =R15 -> 1,005 | AN15: 11 | AO15: 31 | AP15: 28 | AQ15: 44 | AR15: 1.10 | AS15: 34 | AT15: 26 | AU15: 37 | AV15: 31 | AW15: 44 | AX15: 26 | AY15: 37 | BK15: 11 | BL15: 38 | BM15: 36 | BN15: 53 | BO15: 1.10 | BP15: 42 | BQ15: 40 | BR15: 41 | BS15: 42 | BT15: 41 | BU15: 36 | BV15: 53
A16: 12 | B16: =(-('Sistema Básico GenM'!$C$5)/'Sistema Básico GenM'!$D$5)+(D16/('Sistema Básico GenM'!$D$5)) -> 33 | C16: =(-('Sistema Básico GenM'!$C$10)/('Sistema Básico GenM'!$D$10))+(D16/'Sistema Básico GenM'!$D$10) -> 26 | D16: ='Sistema Básico GenM'!$D$14*E16 -> 48 | E16: 1.20 | I16: ='Sistema Básico GenM'!$D$19 -> 20.00 | O16: 12 | P16: 1,876 | Q16: 1,328 | R16: ='Sistema Ampliado GenM'!$E$14*S16 -> 1,096 | S16: 1.20 | T16: 1,876 | U16: 1,328 | V16: =R16 -> 1,096 | AN16: 12 | AO16: 33 | AP16: 26 | AQ16: 48 | AR16: 1.20 | AS16: 35 | AT16: 25 | AU16: 41 | AV16: 33 | AW16: 48 | AX16: 25 | AY16: 41 | BK16: 12 | BL16: 40 | BM16: 34 | BN16: 58 | BO16: 1.20 | BP16: 43 | BQ16: 39 | BR16: 44 | BS16: 43 | BT16: 44 | BU16: 34 | BV16: 58
A17: 13 | B17: =(-('Sistema Básico GenM'!$C$5)/'Sistema Básico GenM'!$D$5)+(D17/('Sistema Básico GenM'!$D$5)) -> 34 | C17: =(-('Sistema Básico GenM'!$C$10)/('Sistema Básico GenM'!$D$10))+(D17/'Sistema Básico GenM'!$D$10) -> 24 | D17: ='Sistema Básico GenM'!$D$14*E17 -> 52 | E17: 1.30 | I17: ='Sistema Básico GenM'!$D$19 -> 20.00 | O17: 13 | P17: 1,967 | Q17: 1,145 | R17: ='Sistema Ampliado GenM'!$E$14*S17 -> 1,187 | S17: 1.30 | T17: 1,967 | U17: 1,145 | V17: =R17 -> 1,187 | AN17: 13 | AO17: 34 | AP17: 24 | AQ17: 52 | AR17: 1.30 | AS17: 36 | AT17: 23 | AU17: 44 | AV17: 34 | AW17: 52 | AX17: 23 | AY17: 44 | BK17: 13 | BL17: 41 | BM17: 32 | BN17: 63 | BO17: 1.30 | BP17: 44 | BQ17: 37 | BR17: 48 | BS17: 44 | BT17: 48 | BU17: 32 | BV17: 63
A18: 14 | B18: =(-('Sistema Básico GenM'!$C$5)/'Sistema Básico GenM'!$D$5)+(D18/('Sistema Básico GenM'!$D$5)) -> 35 | C18: =(-('Sistema Básico GenM'!$C$10)/('Sistema Básico GenM'!$D$10))+(D18/'Sistema Básico GenM'!$D$10) -> 22 | D18: ='Sistema Básico GenM'!$D$14*E18 -> 56 | E18: 1.40 | I18: ='Sistema Básico GenM'!$D$19 -> 20.00 | O18: 14 | P18: 2,059 | Q18: 963 | R18: ='Sistema Ampliado GenM'!$E$14*S18 -> 1,279 | S18: 1.40 | T18: 2,059 | U18: 963 | V18: =R18 -> 1,279 | AN18: 14 | AO18: 35 | AP18: 22 | AQ18: 56 | AR18: 1.40 | AS18: 38 | AT18: 21 | AU18: 48 | AV18: 35 | AW18: 56 | AX18: 21 | AY18: 48 | AZ18: =($AT$28/$AT$29)-$AT$33 -> (55) | BK18: 14 | BL18: 42 | BM18: 31 | BN18: 68 | BO18: 1.40 | BP18: 45 | BQ18: 36 | BR18: 52 | BS18: 45 | BT18: 52 | BU18: 31 | BV18: 68
A19: 15 | B19: =(-('Sistema Básico GenM'!$C$5)/'Sistema Básico GenM'!$D$5)+(D19/('Sistema Básico GenM'!$D$5)) -> 37 | C19: =(-('Sistema Básico GenM'!$C$10)/('Sistema Básico GenM'!$D$10))+(D19/'Sistema Básico GenM'!$D$10) -> 20 | D19: ='Sistema Básico GenM'!$D$14*E19 -> 60 | E19: 1.50 | O19: 15 | P19: 2,150 | Q19: 780 | R19: ='Sistema Ampliado GenM'!$E$14*S19 -> 1,370 | S19: 1.50 | T19: 2,150 | U19: 780 | V19: =R19 -> 1,370 | AN19: 15 | AO19: 37 | AP19: 20 | AQ19: 60 | AR19: 1.50 | AS19: 39 | AT19: 20 | AU19: 51 | AV19: 37 | AW19: 60 | AX19: 20 | AY19: 51 | BK19: 15 | BL19: 43 | BM19: 29 | BN19: 73 | BO19: 1.50 | BP19: 46 | BQ19: 35 | BR19: 55 | BS19: 46 | BT19: 55 | BU19: 29 | BV19: 73
A20: 16 | B20: =(-('Sistema Básico GenM'!$C$5)/'Sistema Básico GenM'!$D$5)+(D20/('Sistema Básico GenM'!$D$5)) -> 38 | C20: =(-('Sistema Básico GenM'!$C$10)/('Sistema Básico GenM'!$D$10))+(D20/'Sistema Básico GenM'!$D$10) -> 18 | D20: ='Sistema Básico GenM'!$D$14*E20 -> 64 | E20: 1.60 | I20: =MAX(I21:I22) -> 60 | O20: 16 | P20: 2,241 | Q20: 597 | R20: ='Sistema Ampliado GenM'!$E$14*S20 -> 1,461 | S20: 1.60 | T20: 2,241 | U20: 597 | V20: 1,461 | AN20: 16 | AO20: 38 | AP20: 18 | AQ20: 64 | AR20: 1.60 | AS20: 40 | AT20: 18 | AU20: 54 | AV20: 38 | AW20: 64 | AX20: 18 | AY20: 54 | BK20: 16 | BL20: 44 | BM20: 27 | BN20: 78 | BO20: 1.60 | BP20: 47 | BQ20: 34 | BR20: 59 | BS20: 47 | BT20: 59 | BU20: 27 | BV20: 78
A21: 17 | B21: =(-('Sistema Básico GenM'!$C$5)/'Sistema Básico GenM'!$D$5)+(D21/('Sistema Básico GenM'!$D$5)) -> 39 | C21: =(-('Sistema Básico GenM'!$C$10)/('Sistema Básico GenM'!$D$10))+(D21/'Sistema Básico GenM'!$D$10) -> 16 | D21: ='Sistema Básico GenM'!$D$14*E21 -> 68 | E21: 1.70 | H21: demanda | I21: ='Sistema Básico GenM'!B10 -> 60 | O21: 17 | P21: 2,333 | Q21: 415 | R21: ='Sistema Ampliado GenM'!$E$14*S21 -> 1,553 | S21: 1.70 | T21: 2,333 | U21: 415 | V21: 1,553 | AN21: 17 | AO21: 39 | AP21: 16 | AQ21: 68 | AR21: 1.70 | AS21: 41 | AT21: 16 | AU21: 58 | AV21: 39 | AW21: 68 | AX21: 16 | AY21: 58 | BK21: 17 | BL21: 46 | BM21: 26 | BN21: 83 | BO21: 1.70 | BP21: 48 | BQ21: 32 | BR21: 63 | BS21: 48 | BT21: 63 | BU21: 26 | BV21: 83
A22: 18 | B22: =(-('Sistema Básico GenM'!$C$5)/'Sistema Básico GenM'!$D$5)+(D22/('Sistema Básico GenM'!$D$5)) -> 41 | C22: =(-('Sistema Básico GenM'!$C$10)/('Sistema Básico GenM'!$D$10))+(D22/'Sistema Básico GenM'!$D$10) -> 14 | D22: ='Sistema Básico GenM'!$D$14*E22 -> 72 | E22: 1.80 | H22: oferta | I22: ='Sistema Básico GenM'!B5 -> 10 | O22: 18 | P22: 2,424 | Q22: 232 | R22: ='Sistema Ampliado GenM'!$E$14*S22 -> 1,644 | S22: 1.80 | T22: 2,424 | U22: 232 | V22: 1,644 | AN22: 18 | AO22: 41 | AP22: 14 | AQ22: 72 | AR22: 1.80 | AS22: 42 | AT22: 14 | AU22: 61 | AV22: 41 | AW22: 72 | AX22: 14 | AY22: 61 | BK22: 18 | BL22: 47 | BM22: 24 | BN22: 87 | BO22: 1.80 | BP22: 48 | BQ22: 31 | BR22: 66 | BS22: 48 | BT22: 66 | BU22: 24 | BV22: 87
A23: 19 | B23: =(-('Sistema Básico GenM'!$C$5)/'Sistema Básico GenM'!$D$5)+(D23/('Sistema Básico GenM'!$D$5)) -> 42 | C23: =(-('Sistema Básico GenM'!$C$10)/('Sistema Básico GenM'!$D$10))+(D23/'Sistema Básico GenM'!$D$10) -> 12 | D23: ='Sistema Básico GenM'!$D$14*E23 -> 76 | E23: 1.90 | O23: 19 | P23: 2,515 | Q23: 49 | R23: ='Sistema Ampliado GenM'!$E$14*S23 -> 1,735 | S23: 1.90 | T23: 2,515 | U23: 49 | V23: 1,735 | AN23: 19 | AO23: 42 | AP23: 12 | AQ23: 76 | AR23: 1.90 | AS23: =(AU23-$AT$26+($AT$27*$AT$32))/$AT$27 -> 43 | AT23: 13 | AU23: 65 | AV23: 42 | AW23: 76 | AX23: 13 | AY23: 65 | BK23: 19 | BL23: 48 | BM23: 23 | BN23: 92 | BO23: 1.90 | BP23: 49 | BQ23: 30 | BR23: 70 | BS23: 49 | BT23: 70 | BU23: 23 | BV23: 92
A24: 20 | B24: =(-('Sistema Básico GenM'!$C$5)/'Sistema Básico GenM'!$D$5)+(D24/('Sistema Básico GenM'!$D$5)) -> 43 | C24: =(-('Sistema Básico GenM'!$C$10)/('Sistema Básico GenM'!$D$10))+(D24/'Sistema Básico GenM'!$D$10) -> 10 | D24: ='Sistema Básico GenM'!$D$14*E24 -> 80 | E24: 2.00 | O24: 20 | P24: 2,607 | Q24: (133) | R24: ='Sistema Ampliado GenM'!$E$14*S24 -> 1,827 | S24: 2.00 | T24: 2,607 | U24: (133) | V24: 1,827 | AN24: 20 | AO24: 43 | AP24: 10 | AQ24: 80 | AR24: 2.00 | AS24: =(AU24-$AT$26+($AT$27*$AT$32))/$AT$27 -> 44 | AT24: =(AU24-$AT$28-($AT$29*$AT$33))/$AT$29 -> 11 | AU24: 68 | AV24: 43 | AW24: 80 | AX24: 11 | AY24: 68 | BK24: 20 | BL24: 49 | BM24: 21 | BN24: 97 | BO24: 2.00 | BP24: 50 | BQ24: 29 | BR24: 74 | BS24: 50 | BT24: 74 | BU24: 21 | BV24: 97
T26: A0 | U26: ='Sistema Ampliado GenM'!I5 -> (30) | AS26: A0 | AT26: ='Impuesto por Unidad GenM'!$C$5 -> (50) | BP26: A0 | BQ26: ='Impuesto Al Valor GenM'!$C$5 -> (100)
B27: B | C27: C | D27: D | T27: A1 | U27: ='Sistema Ampliado GenM'!J5 -> 1 | AS27: A1 | AT27: ='Impuesto por Unidad GenM'!$D$5 -> 3 | AV27: CONSUMIDOR 1 | BP27: A1 | BQ27: ='Impuesto Al Valor GenM'!$D$5 -> 4 | BS27: CONSUMIDOR 1
B28: xs | C28: -a0 | D28: a1 | T28: A2 | U28: ='Sistema Ampliado GenM'!K5 -> -0.3 | AS28: B0 | AT28: ='Impuesto por Unidad GenM'!$C$9 -> 100 | AW28: 1 | BP28: B0 | BQ28: ='Impuesto Al Valor GenM'!$C$9 -> 160 | BT28: 2
A29: 5 | B29: =C29+(D29*D40) -> 10.0 | C29: ='Sistema Básico GenM'!C5 -> (50.0) | D29: ='Sistema Básico GenM'!D5 -> 3.0 | E29: =(C29/D29*-1)+((1/D29)*E40) -> 36.66666667 | T29: M | U29: ='Sistema Ampliado GenM'!J17 -> 3,900 | AS29: B1 | AT29: ='Impuesto por Unidad GenM'!$D$9 -> -2 | AV29: PRODUCTOR 2 | BP29: B1 | BQ29: ='Impuesto Al Valor GenM'!$D$9 -> -3 | BS29: PRODUCTOR 2
A30: 6 | Q30: =R4-Q38-(S38*R51) -> 780 | T30: W | U30: ='Sistema Ampliado GenM'!J18 -> 2,500 | AS30: x* | AT30: =((AT29*AT26)-(AT28*AT27))/(AT29-AT27) -> 40.00 | AW30: 1 | AX30: 2 | BP30: x* | BQ30: =((BQ29*BQ26)-(BQ28*BQ27))/(BQ29-BQ27) -> 48.57 | BT30: 1 | BU30: 2
A31: 7 | B31: FUNCIÓN DE DEMANDA | T31: B0 | U31: ='Sistema Ampliado GenM'!I9 -> 200 | AS31: p* | AT31: =(AT26-AT28)/(AT29-AT27) -> 30.00 | AV31: s aalo | AW31: =AT26 -> (50.0) | AX31: =AT26+(AT32*AT27) -> (35.0) | BP31: p* | BQ31: =(BQ26-BQ28)/(-BQ27+BQ29) -> 37.14 | BS31: s aalo | BT31: =BQ26 -> (100.0) | BU31: =BQ26+((BQ32*BQ35)*BQ27) -> (72.6)
A32: 8 | T32: B1 | U32: ='Sistema Ampliado GenM'!J9 -> -0.5 | AS32: Tproductor | AT32: ='Impuesto por Unidad GenM'!$D$16 -> 5 | AV32: d aalo | AW32: =AT28 -> 100 | AX32: =AT28-(AT29*AT33) -> 110 | BP32: Tproductor | BQ32: ='Impuesto Al Valor GenM'!$D$16 -> 0.20 | BS32: d aalo | BT32: =BQ28 -> 160 | BU32: =BQ28-(BQ29*BQ33*BQ35) -> 160
A33: 9 | B33: xd | C33: b0 | D33: -b1 | T33: B2 | U33: ='Sistema Ampliado GenM'!K9 -> 0.4 | AS33: T consumidor | AT33: ='Impuesto por Unidad GenM'!$D$17 -> 5 | BP33: T consumidor | BQ33: ='Impuesto Al Valor GenM'!$D$17 -> 0
A34: 10 | B34: =C34+(D34*D40) -> 60.0 | C34: ='Sistema Básico GenM'!C10 -> 100.0 | D34: ='Sistema Básico GenM'!D10 -> (2.0) | E34: =(C34/D34*-1)+((1/D34)*E41) -> 45 | AS34: x* con T | AT34: =AT26+($AT$27*$AT$35) -> 34.00 | BP34: x* con T | BQ34: =BQ26+($BQ$27*$BQ$35) -> 36.84
A35: 11 | P35: B | Q35: C | R35: D | S35: E | T35: F | U35: G | V35: H | W35: I | X35: J | Y35: K | AS35: ps* | AT35: =(AT26-AT28-(AT29*(IF(AW28=1,AT33,AT32))))/(-AT27+AT29) -> 28.00 | BP35: ps* | BQ35: =(BQ26-BQ28)/(BQ29-BQ27+(BQ29*(IF(BT28=1,BQ33,BQ32)))) -> 34.21
A36: 12 | P36: FUNCIÓN DE OFERTA | V36: NUEVA FUNCIÓN DE OFERTA | AS36: pd* | AT36: =AT35+(IF(AW28=1,AT33,AT32)) -> 33.00 | BP36: pd* | BQ36: =BQ35+(BQ35*(IF(BT28=1,BQ33,BQ32))) -> 41.05
A37: 13 | B37: Precio de Equilibrio | D37: =(C29-C34)/(D34-D29) -> 30.0 | P37: xs | Q37: -a0 | R37: a1 | S37: -a2 | V37: xs | W37: -a0 | X37: a1 | Y37: `-a2 | AS37: ingreso trib | AT37: =(IF(AW28=1,AT33,AT32))*AT34 -> 170 | AV37: =(AT30-AT34)*(AT36-AT35)*0.5 -> 15.00 | BP37: ingreso trib | BQ37: =(IF(BT28=1,BQ33,BQ32))*BQ34 -> 7
A38: 14 | B38: Cantidad de Equilibrio | D38: =((D34*C29)-(C34*D29))/(D34-D29) -> 40.0 | O38: 5 | P38: =Q38+(R38*R52)+(S38*R51) -> 913.3 | Q38: ='Sistema Ampliado GenM'!C5 -> (30.0) | R38: ='Sistema Ampliado GenM'!D5 -> 1.0 | S38: ='Sistema Ampliado GenM'!E5 -> (0.3) | V38: =W38+(X38*X46)+(Y38*X51) -> 913.3 | W38: ='Sistema Ampliado GenM'!I5 -> (30.0) | X38: ='Sistema Ampliado GenM'!J5 -> 1.0 | Y38: ='Sistema Ampliado GenM'!K5 -> (0.3) | AS38: PIE | AT38: =(AT30-AT34)*(AT36-AT35)*0.5 -> 15.00 | BP38: PIE | BQ38: =((BQ36-BQ35)*(BQ30-BQ34))*0.5 -> 40.13
A39: 15 | F39: ENC | G39: ENP | H39: PIEC | I39: PIEP | J39: PIE | O39: 6
A40: 16 | B40: Precio Diferente al de Equilibrio | D40: ='Sistema Básico GenM'!D19 -> 20.0 | E40: =C34+D34*D40 -> 60.0 | F40: =(((C34/D34*-1)-D40)*D42)/2 -> 150 | G40: =(((D40-(C29/D29*-1))*E41)/2)-((((E41-E40)*(D40-((C29/D29*-1)+((1/D29)*E40)))))/2) -> (400) | H40: =((D40-D37)*(D38-E40))/2 -> 100 | I40: =((D37-(((C29/D29*-1)+((1/D29)*E40))))*(D38-E40))/2 -> 67 | J40: =I40+H40 -> 167 | O40: 7 | P40: FUNCIÓN DE DEMANDA | V40: NUEVA FUNCIÓN DE DEMANDA
A41: 17 | E41: =C29+D29*D40 -> 10.0 | F41: =((((C34/D34*-1)-D40)*E40)/2)-((((C34/D34*-1)+((1/D34)*E41)-D40)*(E40-E41))/2) -> 275 | G41: =((D40-(C29/D29*-1))*E41)/2 -> 17 | H41: =((((C34/D34*-1)+((1/D34)*E41))-D40)*(D38-E41))/2 -> 375 | I41: =((D37-D40)*(D38-E41))/2 -> 150 | J41: =I41+H41 -> 525 | O41: 8 | P41: xd | Q41: b0 | R41: -b1 | S41: b2 | V41: xd | W41: b0 | X41: `-b1 | Y41: b2
A42: 18 | D42: =IF(D40<D37,E41,E40) -> 10 | O42: 9 | P42: =Q42+(R42*R52)+(S42*R50) -> 913.3 | Q42: ='Sistema Ampliado GenM'!C9 -> 200.0 | R42: ='Sistema Ampliado GenM'!D9 -> (0.5) | S42: ='Sistema Ampliado GenM'!E9 -> 0.4 | V42: =W42+(X42*X46)+(Y42*X50) -> 913.3 | W42: ='Sistema Ampliado GenM'!I9 -> 200.0 | X42: ='Sistema Ampliado GenM'!J9 -> (0.5) | Y42: ='Sistema Ampliado GenM'!K9 -> 0.4
A43: 19 | B43: Exceso de Demanda | D43: =IF((B34-B29)<=0,"",(B34-B29)) -> 50.0 | O43: 10
A44: 20 | O44: 11
A45: 21 | B45: Exceceso de Oferta | D45: =IF((B29-B34)<=0,"",(B29-B34)) ->  | O45: 12 | V45: NUEVOS PRECIOS Y CANTIDADES | Y45: Variación
O46: 13 | P46: Precio de Equilibrio | S46: =(Q42-Q38+(S42*R50)-(S38*R51))/(R38-R42) -> 1,693.3 | V46: Precio de Equilibrio | X46: =(W42-W38+(Y42*X50)-(Y38*X51))/(X38-X42) -> 1,693.3 | Y46: =X46-S46 -> 0
B47: Excedente neto consumidor | D47: =IF(D40>D37,F40,F41) -> 275.0 | O47: 14 | P47: Cantidad de Equilibrio | S47: =((Q42*R38)+(S42*R38*R50)-(R42*Q38)-(R42*S38*R51))/(R38-R42) -> 913.3 | V47: Cantidad de Equilibrio | X47: =((W42*X38)+(Y42*X38*X50)-(X42*W38)-(X42*Y38*X51))/(X38-X42) -> 913.3 | Y47: =X47-S47 -> 0
B48: Excedente neto productor | D48: =IF(D40>D37,G40,G41) -> 16.7 | O48: 15
B49: PIE consumidor | D49: =IF(D40>D37,H40,H41) -> 375.0 | O49: 16 | V49: NUEVO INGRESO Y SALARIO | Y49: Variación
B50: PIE productor | D50: =IF(D40>D37,I40,I41) -> 150.0 | O50: 17 | P50: Ingreso (m) | R50: ='Sistema Ampliado GenM'!D17 -> 3,900.0 | V50: Ingreso (m) | X50: ='Sistema Ampliado GenM'!J17 -> 3,900.0 | Y50: =X50-R50 -> 0
B51: PIE | D51: =IF(D40>D37,J40,J41) -> 525.0 | O51: 18 | P51: Salario (w) | R51: ='Sistema Ampliado GenM'!D18 -> 2,500.0 | S51: max xs y xd | V51: Salario (w) | X51: ='Sistema Ampliado GenM'!J18 -> 2,500.0 | Y51: =X51-R51 -> 0
O52: 19 | P52: Precio Diferente al de Equilibrio | R52: ='Sistema Ampliado GenM'!D19 -> 1,693.3 | S52: =MAX(P42,P38) -> 913.3
O53: 20
O54: 21
O55: 22 | P55: Exceso de Demanda | R55: =IF((P42-P38)<0,"",(P42-P38)) -> 0.0
O56: 23
O57: 24 | P57: Execeso de Oferta | R57: =IF((P38-P42)<0,"",(P38-P42)) -> 
